Cogmind - Beta 10.2 @@@ ROGUE MODE // 2022.01.12 @ 00:55:01 Player: Okkudo Result: Self-destructed Performance ------------- Evolutions (1) 500 Regions Visited (2) 400 Robots Destroyed (30) 150 Value Destroyed (690) 690 Prototype IDs (0) 0 Alien Tech Used (0) 0 Bonus (0) 0 TOTAL SCORE: 1740 Bonus ------- None Cogmind --------- Core Integrity 202/400 Matter 8/300 Energy 125/125 System Corruption 0% Temperature Cool (0) Movement Treading (180) Ox1 Location -9/Materials Parts ------- > --- POWER (1) -------- Light Ion Engine > --- PROPULSION (3) --- Light Treads > --- UTILITY (3) ------ Large Storage Unit Large Storage Unit Visual Processing Unit > --- WEAPON (2) ------- Heavy Assault Rifle Mini Grenade Launcher > --- INVENTORY (16) --- Medium Storage Unit Hardened Light Armor Plating Light Assault Rifle Shotgun Mini Grenade Launcher Mini Grenade Launcher Datajack Peak State ------------ > --- POWER ------------ Ion Engine > --- PROPULSION ------- Light Treads Light Treads Light Treads > --- UTILITY ---------- Large Storage Unit Large Storage Unit > --- WEAPON ----------- Heavy Assault Rifle Mini Grenade Launcher > --- INVENTORY -------- Light Ion Engine Medium Storage Unit Hardened Light Armor Plating Light Assault Rifle Mini Grenade Launcher Mini Grenade Launcher Datajack [Rating: 11] Favorites ----------- Power Ion Engine Engine Ion Engine Propulsion Light Treads Treads Light Treads Utility Large Storage Unit Storage Large Storage Unit Processor Visual Processing Unit Weapon EM Pulse Gun Energy Gun EM Pulse Gun Ballistic Gun Light Assault Rifle Launcher Mini Grenade Launcher Build | -11 -10 -9 ------- Run | Scr Mat Mat Slots Evolved 2 | . . 2 Power . | . . . Propulsion 1 | . . 1 Utility 1 | . . 1 Weapon . | . . . Parts Attached 19 | 6 3 10 Power 2 | . 1 1 Engine 2 | . 1 1 Core . | . . . Reactor . | . . . Propulsion 3 | 2 . 1 Treads 3 | 2 . 1 Leg . | . . . Wheel . | . . . Hover . | . . . Flight . | . . . Utility 5 | 2 2 1 Device . | . . . Storage 4 | 2 2 . Processor 1 | . . 1 Hackware . | . . . Protection . | . . . Artifact . | . . . Weapon 9 | 2 . 7 Energy Gun 2 | 2 . . Energy Cannon . | . . . Ballistic Gun 4 | . . 4 Ballistic Cannon . | . . . Launcher 3 | . . 3 Special Weapon . | . . . Impact Weapon . | . . . Slashing Weapon . | . . . Piercing Weapon . | . . . Special Melee Weapon . | . . . Unidentified Prototypes . | . . . Parts Lost 7 | . . 7 Power 1 | . . 1 Propulsion 2 | . . 2 Utility . | . . . Weapon 4 | . . 4 Highest Loss Streak 4 | . . 4 Average Slot Usage (%) 86 | . 92 80 Engine 8 | . 7 10 Treads 27 | . 28 26 Storage 25 | . 28 22 Energy Gun 18 | . 28 6 Ballistic Gun 4 | . . 8 Launcher 2 | . . 5 Naked Turns . | . . . Heaviest Build 41 | 12 41 41 Greatest Support 60 | 40 40 60 Greatest Overweight (x) 1 | 1 1 1 Average Overweight (x) . | . . . Largest Inventory Capacity 16 | 8 16 16 Average Capacity 13 | 6 12 16 Most Carried 8 | 4 6 8 Average Carried 4 | 2 4 4 Final Capacity 16 | 8 16 16 Final Carried 7 | 3 4 7 Class Distribution -------------------- 100% | Mutant Dominant Class ---------------- Mutant | -10/Materials Mutant | -9/Materials Resources | -11 -10 -9 ----------- Run | Scr Mat Mat Matter Collected 323 | 155 135 33 Remotely . | . . . Salvage Created 950 | 75 411 464 Parts 63 | 3 26 34 Haulers Intercepted 1 | . . 1 Recyclers Shooed 2 | . . 2 Parts Field Recycled . | . . . Retrieved Matter . | . . . Parts Self-Destructed . | . . . Prevented . | . . . Kills | -11 -10 -9 ------- Run | Scr Mat Mat Combat Hostiles Destroyed 19 | . 8 11 Guns 11 | . 8 3 AOE 8 | . . 8 Classes Destroyed 8 | 1 1 6 Worker 2 | . . 2 Builder 2 | . . 2 Hauler 1 | . . 1 Recycler 4 | 1 1 2 Watcher 2 | . . 2 Swarmer 4 | . . 4 Grunt 11 | . 8 3 Sentry 4 | . . 4 Best Kill Streak 8 | 1 2 8 Combat Bots Only 6 | . 2 6 Max Kills in Single Turn 3 | 1 1 3 Gunslinging . | . . . Exploded 3 | . . 3 Melee . | . . . Uniques/NPCs Destroyed . | . . . Combat | -11 -10 -9 -------- Run | Scr Mat Mat Damage Taken 1051 | . 118 933 Core 241 | . 43 198 Absorbed by Shields . | . . . Core Remaining (%) 91 | 100 82 . Volleys Fired 52 | 2 15 35 Largest 2 | 2 2 2 Hottest 80 | 80 80 80 Shots Fired 88 | 4 30 54 Gun 67 | 4 30 33 Cannon . | . . . Launcher 21 | . . 21 Special . | . . . Kinetic 26 | . . 26 Thermal . | . . . Explosive 21 | . . 21 Electromagnetic 41 | 4 30 7 Robot Hit Streak 14 | 2 8 14 Robot Miss Streak 3 | 1 3 3 Penetration Max . | . . . Secondary Targets . | . . . Shots Hit Robots 54 | 3 22 29 Core Hits 54 | 1 18 35 Critical Hits 1 | . . 1 Critical Kills 1 | . . 1 Critical Parts Destroyed . | . . . Melee Attacks . | . . . Impact . | . . . Slashing . | . . . Piercing . | . . . Sneak Attacks . | . . . Combat Hostiles . | . . . Follow-up Attacks . | . . . Damage Inflicted 1621 | 45 337 1239 Guns 504 | 15 281 208 Cannons . | . . . Explosions 1117 | 30 56 1031 Melee . | . . . Ramming . | . . . Kinetic 147 | . . 147 Thermal 86 | 30 56 . Explosive 1031 | . . 1031 Electromagnetic 357 | 15 281 61 Impact . | . . . Slashing . | . . . Piercing . | . . . Highest Corruption 1 | . 1 . Average Corruption 1 | . 1 . Corruption Purged . | . . . Overload Shots . | . . . Overflow Damage 4 | . . 4 Projectiles . | . . . Explosions 4 | . . 4 Melee . | . . . Knockbacks . | . . . Impact . | . . . Kinetic . | . . . Secondary . | . . . Self-Inflicted Damage 134 | . . 134 Shots 4 | . . 4 Rammed . | . . . Targets Rammed . | . . . Kicked . | . . . Crushed . | . . . Highest Temperature 24 | 6 24 10 Average Temperature 6 | 3 7 5 Received Heat Transfer 324 | . 69 255 Siege Activations . | . . . Robots Corrupted . | . . . Combat Hostiles . | . . . Parts Fried 1 | . . 1 Impact Corruptions . | . . . Robots Melted . | . . . Combat Hostiles . | . . . Parts Melted . | . . . Heat Transferred 100 | . 100 . Parts Sabotaged . | . . . Parts Stolen . | . . . Parts Stripped . | . . . Power Chain Reactions 2 | 1 1 . Missiles Intercepted . | . . . Alert | -11 -10 -9 ------- Run | Scr Mat Mat Peak Influence 306 | 5 218 306 Initial 28 | . 3 28 Average 102 | 1 99 128 Maximum Alert Level 1 | . 1 1 Low Security (%) 81 | 100 90 65 Level 1 18 | . 9 34 Level 2 . | . . . Level 3 . | . . . Level 4 . | . . . Level 5 . | . . . High Security . | . . . Max Security . | . . . Squads Dispatched 4 | . 2 2 Investigation 2 | . 1 1 Extermination . | . . . Reinforcement 2 | . 1 1 Assault . | . . . Garrison . | . . . Intercept . | . . . Construction Impeded . | . . . Haulers Reinforced . | . . . Stealth | -11 -10 -9 --------- Run | Scr Mat Mat Distress Signals 1 | . . 1 Communications Jammed . | . . . Distress Signals . | . . . Times Spotted 32 | . 13 19 Peak Tracking Total 8 | . 2 8 Tactical Retreats 3 | . 2 1 Traps | -11 -10 -9 ------- Run | Scr Mat Mat Traps Triggered . | . . . Indirectly . | . . . Trap Hack Attempts . | . . . Triggered . | . . . Disarmed . | . . . Reprogrammed . | . . . Reused . | . . . Traps Extracted . | . . . Installed . | . . . Triggered . | . . . Machines | -11 -10 -9 ---------- Run | Scr Mat Mat Machines Disabled . | . . . Max in Single Turn . | . . . Machines Sabotaged . | . . . Garrisons Compromised . | . . . Overloaded Fab Kills . | . . . Fab Network Shutdowns . | . . . Hacking | -11 -10 -9 --------- Run | Scr Mat Mat Machines Accessed 3 | . 2 1 Terminals 3 | . 2 1 Fabricators . | . . . Repair Stations . | . . . Recycling Units . | . . . Scanalyzers . | . . . Garrison Access . | . . . Total Hacks 8 | . 5 3 Successful 3 | . 1 2 Failed 5 | . 4 1 Catastrophic 1 | . 1 . Database Lockouts . | . . . Manual 5 | . 2 3 Terminals 8 | . 5 3 Fabricators . | . . . Repair Stations . | . . . Recycling Units . | . . . Scanalyzers . | . . . Garrison Access . | . . . Terminal Hacks 3 | . 1 2 Alert Level 1 | . . 1 Unreport Threat 1 | . . 1 Hauler Manifests 1 | . 1 . Fabricator Hacks . | . . . Repair Station Hacks . | . . . Recycling Unit Hacks . | . . . Scanalyzer . | . . . Garrison Access Hacks . | . . . Unauthorized Hacks . | . . . Terminals . | . . . Fabricators . | . . . Repair Stations . | . . . Recycling Units . | . . . Scanalyzers . | . . . Garrison Access . | . . . Data Cores Recovered . | . . . Used . | . . . Hacking Detections 3 | . 2 1 Full Trace Events 3 | . 2 1 Feedback Events 1 | . 1 . Corruption 1 | . 1 . Feedback Blocked . | . . . Robot Schematics Acquired . | . . . Robots Built . | . . . Matter . | . . . Time . | . . . Total Robot Build Rating . | . . . Part Schematics Acquired . | . . . Parts Built . | . . . Matter . | . . . Time . | . . . Total Part Build Rating . | . . . Parts Repaired . | . . . Time . | . . . Parts Recycled . | . . . Recycled Matter . | . . . Retrieved Matter . | . . . Retrieved Components . | . . . Parts Scanalyzed . | . . . Part Schematics Acquired . | . . . Parts Damaged . | . . . Bothacking | -11 -10 -9 ------------ Run | Scr Mat Mat Used RIF Installer . | . . . Robots Hacked . | . . . Non-combat . | . . . Combat . | . . . Robot Hacks Applied . | . . . Relay Couplers Released . | . . . Robots Rewired . | . . . Allies Hacked . | . . . Hacks Repelled . | . . . Allies | -11 -10 -9 -------- Run | Scr Mat Mat Total Allies . | . . . Largest Group . | . . . Highest-Rated Group . | . . . Highest-Rated Ally . | . . . Total Orders . | . . . Ally Attacks . | . . . Total Damage . | . . . Kills . | . . . Allies Corrupted . | . . . Allies Melted . | . . . Intel | -11 -10 -9 ------- Run | Scr Mat Mat Robot Analysis Total . | . . . Derelict Logs Recovered . | . . . Drone Launches . | . . . Drone Recoveries . | . . . Exploration | -11 -10 -9 ------------- Run | Scr Mat Mat Turns Passed 1021 | 94 503 424 Spaces Moved 505 | 54 261 190 Core 11 | 11 . . Treads 494 | 43 261 190 Legs . | . . . Wheels . | . . . Hover . | . . . Flight . | . . . Fastest Speed 50 | 50 160 160 Average Speed 165 | 138 169 166 Slowest Speed 180 | 160 180 180 Overloaded Moves . | . . . Propulsion Burnouts . | . . . Robots Hopped . | . . . Cave-ins Triggered . | . . . Exploration Rate (%) 24 | 5 46 23 Regions Visited 2 Branch Regions . Pre-discovered Areas . | . . . Known Exits Taken . | . . . Unknown Exits Taken 2 | 1 1 . Scrap Searched . | . . . Spaces Dug 32 | . . 32 Terrain Destroyed 105 | 4 4 97 Melee . | . . . Projectile . | . . . AOE 105 | 4 4 97 Terrain Rammed . | . . . Walls Destroyed . | . . . Machines Disabled . | . . . Actions | -11 -10 -9 --------- Run | Scr Mat Mat Total 606 | 68 292 246 Wait 9 | . 8 1 Move 503 | 53 260 190 Hop . | . . . Pick Up 21 | 7 4 10 Fast Attach 2 | 2 . . Attach 13 | 4 2 7 Detach . | . . . Swap 4 | . 1 3 Drop 2 | . 2 . Fire 52 | 2 15 35 Melee . | . . . Ram . | . . . Kick . | . . . Crush . | . . . Escape Stasis . | . . . Rewire . | . . . Trap . | . . . Miscellaneous . | . . . Route ------- -11/Scrapyard -10/Materials (discovered 3 exits: *Mat x2 / [*Min]) -9/Materials History --------- Turn | Location | Event 4 | -11/Scrapyard | Discovered new exit (range 16) 95 | -11/Scrapyard | Entered Materials 303 | -10/Materials | Discovered new exit (range 14) 305 | -10/Materials | Build established: Mutant 487 | -10/Materials | Discovered new exit (range 13) 560 | -10/Materials | Discovered new exit (range 14) 598 | -10/Materials | Entered another Materials area 598 | -9/Materials | Evolved 2 slots: Propulsion x1, Utility x1 981 | -9/Materials | Lost 4 parts (1p2n1w) 1022 | -9/Materials | Self-destructed Last Messages --------------- 00956_ Y-45 Defender destroyed. 00956_ R-06 Scavenger inserts Wheel into recycling unit. 00957_ Recycling unit begins recycling process. 00959_ K-01 Serf collects debris. 00960_ The unstable cave ceiling collapses. 00966_ K-01 Serf collects debris. 00967_ The unstable cave ceiling collapses. 00969_ K-01 Serf collects debris. 00974_ Acquired Hvy. Assault Rifle. 00976_ K-01 Serf collects debris. 00981_ The unstable cave ceiling collapses. 00983_ K-01 Serf collects debris. 00984_ W-16 Scout destroyed. 00984_ R-06 Scavenger destroyed. 00984_ K-01 Serf destroyed. 00986_ The unstable cave ceiling collapses. 00992_ Acquired Visual Processing Unit. 00996_ K-01 Serf collects debris. 01005_ R-06 Scavenger collects Lgt. Ion Engine. 01021_ Acquired Shotgun. Map ----- +----------------------------------------------------+ | | | | | | | ?????????????????????????????????????????????????? | | ?????????????????????????????????????????????????? | | ?????????????????????????????????????????????????? | | ?????????????????????????????????????????????????? | | ?????????????????????????????????????????????????? | | ?????????????????????????????????????????????????? | | ?????????????????????????????????????????????????? | | ?????????????????????????????????????????????????? | | ?????????????????????????????????????????????????? | | ?????????????????????????????????????????????????? | | ?????????????????????????????????????????????????? | | ?????????????????????????????????????????????????? | | ?????????????????????????????????????????????????? | | ?????????????????????????????????????????????????? | | ?????????????????????????????????????????????????? | | ?????????????????????????????????????????????????? | | ?????????????????????????????????????????????????? | | ?????????????????????????????????????????????????? | | ?????????????????????????????????????????????????? | | ?????????????????????????????????????????????????? | | ?????????????##############??????????????????????? | | ?????????????# #????##????????????????? | | ?????????????# @#?? ##/#####?????????? | | ?????????????# ss# ????????? | | ?????????????# s T ????????? | | ?????????????# # ????????? | | ?????????????######+#######?? ########?????????? | | ?????????????????# #???????? ##????????????????? | | ?????????????????# ######?? #?????????????????? | | ???????########### # #? #?????????????????? | | ???????# ## ## #?????????????????? | | ???????# """ ## # ##????????????????? | | ???????# """ # *% #!# #????????????????? | | ???????# """ # *% #????????????????? | | ???????# + T = +????????????????? | | ???????#"S %= #????????????????? | | ???????#""" # # *## #????????????????? | | ???????# "" # # ####????????????????? | | ???????# # # #???????????????????? | | ???????########## # ####???????????????????? | | ????????????###?# #????????????????????? | | ??????????### #### # """ #????????????????????? | | ??????????# [ ! # # "Y" #????????????????????? | | ??????????# # + #????????????????????? | | ??????????# ]]] # #????????????????????? | | ??????????# ]]] %# #????????????????????? | | ??????????# % # ####????????????????? | +----------------------------------------------------+ Best States ------------- Heat Dissipation 28 Energy Generation 10 Energy Capacity 250 Matter Stores 300 Matter Capacity 300 Sight Range 18 Terrain Scan Density 10 Evasion (%) 50 Recoil Reduction 3 Item Schematics ----------------- None Robot Schematics ------------------ None Fabricated ------------ Nothing Alien Tech Used ----------------- None Achievements -------------- Everything Is Under Control Challenges ------------ None Game ------ Seed GravmagMiniProtomatter Manual? 0 Play Time 00:12:57 Cumulative 25.7 hours Start 2022.01.12 @ 00:42:09 End 2022.01.12 @ 00:55:01 Sessions 1 Manual Loads 0 Difficulty Rogue Special Mode None Game No. 53 Rogue 53 Adventurer 0 Explorer 0 Win Type - Total 0 Types 0/0/0/0/0/0/0/0/0 Lore% 21 Gallery% 21 Achievement% 17 Wizard Run 0 Options --------- ASCII 0 Keyboard 0 Movement Mouse Keybinds 0 Fullscreen 1 Font 12/Terminus Map View 83x54 Tactical HUD 1 Map Filters NONE Filters NONE Steam 1 RUN: 8ddf2373-ab2d-4bf6-b2f1-c087caf44a75